bitfinex/quotes_SOLUSD_20260211
["timestamp","ask_amount","ask_price","bid_price","bid_amount"]
[1770780198223,1e-08,82.96,82.95,18.75761785]
[1770780198427,1e-08,82.96,82.952,46.7]
[1770780199238,1e-08,82.96,82.95,18.75761785]
[1770780199547,1e-08,82.96,82.951,58.77530976]
[1770780200121,1e-08,82.96,82.952,0.45551685]
[1770780200324,1e-08,82.96,82.952,46.76]
[1770780200521,0.48242716,82.959,82.928,12.0585275]
[1770780200843,0.48242716,82.949,82.923,58.83934959]
[1770780201148,0.48242716,82.949,82.923,46.78]
[1770780201748,0.48242716,82.949,82.924,12.05923496]
[1770780201948,0.48242716,82.947,82.923,46.78]
[1770780202149,1e-08,82.96,82.94,18.75761785]
[1770780202332,1e-08,82.96,82.924,12.05923496]
[1770780202333,0.48242716,82.958,82.924,12.05923496]
[1770780204134,0.48916971,82.956,82.924,12.05923496]
[1770780204547,0.48916971,82.949,82.923,46.82]
[1770780205039,0.48916971,82.949,82.901,30.1562882]
[1770780205040,0.48916971,82.958,82.924,12.05923496]
[1770780205440,0.48916971,82.958,82.925,46.82]
[1770780206247,0.48916971,82.958,82.926,12.05894411]
[1770780206648,0.48916971,82.958,82.927,0.453632]
[1770780206948,0.48916971,82.958,82.928,46.82]
[1770780208956,0.48916971,82.958,82.929,12.05850788]
[1770780209757,0.48916971,82.956,82.928,46.82]
[1770780209957,12.05443784,82.957,82.923,46.84]
[1770780209958,0.48916971,82.949,82.923,46.84]
[1770780210352,0.48916971,82.939,82.923,45.36956478]
[1770780210656,0.48916971,82.929,82.906,46.84]
[1770780211233,0.48916971,82.929,82.9,12.06271327]
[1770780211454,0.48916971,82.929,82.901,46.84]
[1770780211641,0.48916971,82.929,82.902,12.06233176]
[1770780211841,0.48916971,82.927,82.901,46.84]
[1770780212040,0.48916971,82.927,82.901,58.9024643]
[1770780212266,0.48916971,82.935,82.908,0.453632]
[1770780212756,12.05633832,82.944,82.911,0.453632]
[1770780212757,0.48916971,82.944,82.911,0.453632]
[1770780212962,0.48916971,82.952,82.921,0.453632]
[1770780213142,0.48916971,82.952,82.923,0.453632]
[1770780213341,0.48916971,82.958,82.931,0.453632]
[1770780213737,0.48916971,82.958,82.924,46.86]
[1770780213738,1e-08,82.96,82.94,19.17489986]
[1770780213945,1e-08,82.96,82.941,0.453632]
[1770780214252,1e-08,82.96,82.942,47.313632]
[1770780214436,1e-08,82.96,82.943,0.453632]
[1770780215163,1e-08,82.96,82.944,12.05632716]
[1770780216459,1e-08,82.96,82.946,12.05603645]
[1770780216662,1e-08,82.96,82.945,46.86]
[1770780216960,1e-08,82.96,82.945,58.91610935]
[1770780217159,1e-08,82.96,82.945,12.05610935]
[1770780217452,1e-08,82.96,82.945,12.50974135]
[1770780217659,1e-08,82.96,82.945,58.93610935]
[1770780218337,0.48916971,82.949,82.904,0.453632]
[1770780218536,0.48916971,82.949,82.924,12.05916154]
[1770780220159,0.48916971,82.949,82.919,58.95982679]
[1770780220457,0.48916971,82.949,82.919,12.05982679]
[1770780220863,0.48916971,82.949,82.92,19.17489986]
[1770780221049,0.48916971,82.949,82.921,0.453632]
[1770780221552,0.48916971,82.949,82.922,47.353632]
[1770780222465,0.48916971,82.949,82.923,12.05938038]
[1770780223262,12.05574576,82.948,82.921,46.94]
[1770780223566,0.48916971,82.939,82.909,46.92]
[1770780223765,0.48916971,82.939,82.906,12.06179514]
[1770780225058,0.48916971,82.939,82.91,12.51489715]
[1770780225268,18.72126786,82.94,82.911,0.453632]
[1770780225575,0.48916971,82.949,82.913,0.453632]
[1770780225779,0.48916971,82.948,82.913,0.453632]
[1770780225977,0.48916971,82.948,82.915,0.453632]
[1770780226269,0.48916971,82.948,82.914,46.94]
[1770780226270,0.48916971,82.948,82.921,0.453632]
[1770780226470,18.72126787,82.96,82.931,0.453632]
[1770780226471,1e-08,82.96,82.931,0.453632]
[1770780226970,1e-08,82.96,82.933,0.453632]
[1770780227357,1e-08,82.96,82.935,0.453632]
[1770780227560,1e-08,82.96,82.935,47.393632]
[1770780227767,1e-08,82.96,82.936,0.453632]
[1770780228155,1e-08,82.96,82.94,18.72126786]
[1770780229279,1e-08,82.96,82.941,0.453632]
[1770780229452,1e-08,82.96,82.942,12.05661787]
[1770780230367,1e-08,82.96,82.943,0.49297195]
[1770780231375,1e-08,82.96,82.95,18.72126786]
[1770780231974,1e-08,82.96,82.94,46.96]
[1770780232173,0.46236841,82.949,82.92,18.72126786]
[1770780232381,0.46236841,82.949,82.921,47.02]
[1770780232866,0.46236841,82.949,82.92,18.72126786]
[1770780233068,0.46236841,82.949,82.921,47.04]
[1770780233381,0.46236841,82.959,82.922,47.04]
[1770780233580,0.46236841,82.959,82.923,47.04]
[1770780234161,18.72126787,82.96,82.921,12.05967125]
[1770780234162,12.05429253,82.958,82.921,12.05967125]
[1770780234382,0.46236841,82.957,82.922,47.06]
[1770780234766,0.46236841,82.957,82.921,12.05967125]
[1770780235073,12.05429253,82.958,82.93,18.72126786]
[1770780235472,0.46236841,82.957,82.93,18.72126786]
[1770780235875,0.46236841,82.957,82.931,12.05821707]
[1770780236467,1e-08,82.96,82.931,12.05821707]
[1770780236766,1e-08,82.96,82.932,47.08]
[1770780236966,12.05407254,82.96,82.933,0.49297195]
[1770780237277,1e-08,82.96,82.94,18.72126786]
[1770780238381,1e-08,82.96,82.941,12.05676324]
[1770780239669,1e-08,82.96,82.942,0.49297195]
[1770780240090,1e-08,82.96,82.951,0.49297195]
[1770780240271,1e-08,82.96,82.943,47.14]
[1770780240673,0.46236841,82.979,82.951,0.49297195]
[1770780240898,0.46236841,82.979,82.943,47.14]
[1770780240899,0.46236841,82.989,82.96,18.72126786]
[1770780241076,0.46236841,82.989,82.961,0.49297195]
[1770780241499,0.46236841,82.989,82.96,18.72126786]
[1770780241500,0.46236841,82.999,82.98,18.72126786]
[1770780241678,0.46236841,83.008,82.98,18.72126786]
[1770780241868,0.46236841,83.008,82.95,18.72126786]
[1770780241869,0.46236841,83.018,82.991,0.49297195]
[1770780242069,0.46236841,83.036,83.01,18.72126786]
[1770780242268,0.46236841,83.036,83.02,18.72126786]
[1770780242472,0.2,83.05,83.03,18.72126786]
[1770780243075,0.2,83.05,83.031,0.49297195]
[1770780243273,0.2,83.05,83.032,47.16]
[1770780243673,0.2,83.05,83.029,0.49297195]
[1770780243882,0.46236841,83.048,83.014,59.20615429]
[1770780244079,0.2,83.05,83.03,30.76510743]
[1770780244287,0.2,83.05,83.03,31.25807938]
[1770780244492,0.46236841,83.074,83.041,0.49297195]
[1770780245286,0.46236841,83.087,83.051,0.49297195]
[1770780245479,0.46236841,83.087,83.051,47.65297195]
[1770780245676,0.46236841,83.087,83.052,0.49297195]
[1770780245873,0.46236841,83.087,83.053,12.04050425]
[1770780246074,0.46236841,83.079,83.053,12.04050425]
[1770780246269,0.46236841,83.079,83.048,12.04120374]
[1770780246706,0.46236841,83.079,82.913,39.3702078]
[1770780246707,12.03572202,83.086,83.053,12.5334762]
[1770780246889,12.03572202,83.086,83.054,0.49297195]
[1770780247088,0.46236841,83.087,83.054,0.49297195]
[1770780247394,0.46236841,83.079,83.05,18.72126786]
[1770780247594,0.46236841,83.079,83.048,47.16]
[1770780247795,0.46236841,83.059,83.024,47.16]
[1770780247996,0.46236841,83.059,83.025,47.16]
[1770780248178,0.46236841,83.059,83.021,12.53811715]
[1770780248385,0.46236841,83.059,83.022,47.16]
[1770780248807,0.46236841,83.059,83.03,18.72126786]
[1770780249101,0.46236841,83.059,83.021,42.15800821]
[1770780249102,0.46236841,83.069,83.041,0.49297195]
[1770780249294,0.46236841,83.078,83.05,18.72126786]
[1770780249884,69.48126786,83.09,83.052,0.49297195]
[1770780249885,0.46236841,83.088,83.052,0.49297195]
[1770780250203,18.72126786,83.09,83.051,47.16]
[1770780250204,0.46236841,83.079,83.051,47.16]
[1770780251405,0.46236841,83.059,83.03,18.72126786]
[1770780251702,0.46236841,83.059,83.033,12.04332786]
[1770780252199,0.46236841,83.059,83.028,12.04407222]
[1770780252410,0.46236841,83.059,83.031,12.04369452]
[1770780253389,30.09330823,83.075,83.031,12.04369452]
[1770780253390,0.46236841,83.073,83.041,0.49297195]
[1770780253590,0.46236841,83.069,83.033,0.49297195]
[1770780254012,18.72126786,83.06,83.026,12.04438708]
[1770780254310,0.46236841,83.058,83.021,0.49297195]
[1770780254507,0.46236841,83.039,83.0,66.41423981]
[1770780254688,0.46236841,83.039,83.01,18.72126786]
[1770780254884,0.46236841,83.058,83.02,18.72126786]
[1770780255302,0.46236841,83.049,83.009,12.04684626]
[1770780255602,0.46236841,83.049,83.02,18.72126786]
[1770780256201,12.04122916,83.048,83.02,18.72126786]
[1770780256412,0.46236841,83.047,83.017,12.04566563]
[1770780256592,0.46236841,83.047,83.012,0.49297195]
[1770780257208,0.46236841,83.047,83.015,12.04595523]
[1770780257413,0.46236841,83.047,83.02,18.72126786]
[1770780257592,0.46236841,83.056,83.03,18.72126786]
[1770780257792,0.46236841,83.056,83.022,47.2]
[1770780258291,0.46236841,83.064,83.04,18.72126786]
[1770780258496,0.46236841,83.064,83.03,18.72126786]
[1770780259506,0.46236841,83.064,83.031,0.49297195]
[1770780260506,0.46236841,83.064,83.04,18.72126786]
[1770780260817,0.46236841,83.064,83.033,0.45716545]
[1770780261408,0.48886606,83.062,83.03,18.72126786]
[1770780261613,0.48886606,83.059,83.031,12.04361753]
[1770780262898,0.48886606,83.059,83.031,12.50078298]
[1770780264317,0.48993193,83.069,83.032,0.45036591]
[1770780264520,12.03818512,83.069,83.032,0.45036591]
[1770780264698,0.48993193,83.068,83.032,0.45036591]
[1770780265117,0.48993193,83.068,83.034,0.45036591]
[1770780265319,0.48993193,83.066,83.034,0.45036591]
[1770780267020,0.48993193,83.066,83.021,30.11278365]
[1770780267021,0.48993193,83.049,83.01,18.72126786]
[1770780267204,0.48993193,83.047,83.011,59.36659623]
[1770780268311,48.14835781,83.077,83.011,59.36659623]
[1770780268312,0.48993193,83.055,83.021,0.45036591]
[1770780268518,0.48993193,83.088,83.04,18.72126786]
[1770780268827,0.48993193,83.059,83.021,0.45036591]
[1770780269325,0.48993193,83.057,83.022,12.04500012]
[1770780270402,18.72126786,83.05,83.017,12.04568405]
[1770780270604,0.48993193,83.049,83.021,12.04508583]
[1770780270805,0.48993193,83.049,83.01,18.72126786]
[1770780271011,0.48993193,83.049,83.017,12.04572324]
[1770780271414,0.48993193,83.048,83.011,12.04659623]
[1770780272109,50.58,83.063,83.021,0.45036591]
[1770780272110,18.72126786,83.06,83.021,0.45036591]
[1770780272312,48.12350921,83.12,83.04,18.72126786]
[1770780272313,0.48993193,83.059,83.04,18.72126786]
[1770780273007,0.48993193,83.059,83.04,18.66830547]
[1770780273208,12.52843433,83.067,83.04,18.66830547]
[1770780273724,0.48993193,83.066,83.04,18.66830547]
[1770780276010,12.03673611,83.079,83.024,30.1116869]
[1770780276011,0.48993193,83.064,83.033,12.04339248]
[1770780276210,12.03876482,83.065,83.011,0.45036591]
[1770780276211,0.48993193,83.049,83.011,0.45036591]
[1770780276432,0.48993193,83.049,83.02,30.71354881]
[1770780277225,0.48993193,83.049,83.02,12.04524334]
[1770780277825,0.48993193,83.049,83.02,18.66830547]
[1770780278631,0.48993193,83.049,83.03,18.66830547]
[1770780278820,0.48993193,83.049,83.021,0.45036591]
[1770780280320,0.48993193,83.049,83.022,12.04500012]
[1770780280526,0.48993193,83.057,83.03,19.11867138]
[1770780280826,0.48993193,83.057,83.022,12.04500012]
[1770780282226,0.48993193,83.049,83.017,12.04572557]
[1770780284141,0.48993193,83.049,83.002,47.48]
[1770780284344,0.48993193,83.029,83.002,47.48]
[1770780285346,0.48993193,83.029,83.002,59.52786841]
[1770780285559,0.48993193,83.029,83.01,18.66830547]
[1770780285849,42.14430208,83.048,83.011,0.45036591]
[1770780285850,0.48993193,83.044,83.011,0.45036591]
[1770780286022,0.48993193,83.044,83.01,66.16830547]
[1770780286023,0.48993193,83.059,83.021,0.45036591]
[1770780286439,0.48993193,83.057,83.022,12.49536603]
[1770780286632,0.48993193,83.057,83.022,12.04500012]
[1770780286842,0.48993193,83.049,83.022,12.04500012]
[1770780287037,0.48993193,83.049,83.018,47.5]
[1770780287245,0.48993193,83.049,83.022,12.04500012]
[1770780287434,0.48993193,83.049,83.018,59.54555626]
[1770780288634,0.48993193,83.047,83.018,59.54555626]
[1770780290642,0.48640717,83.039,83.018,47.5]
[1770780290946,0.48640717,83.039,83.014,12.0461543]
[1770780291250,0.48640717,83.039,83.018,12.04557553]
[1770780291420,0.48640717,83.046,83.019,0.49422269]
[1770780293447,0.48640717,83.046,83.02,12.04529029]
[1770780293645,0.48640717,83.045,83.02,12.04529029]
[1770780294554,12.03931133,83.062,83.021,0.49422269]
[1770780294847,0.48640717,83.061,83.031,0.49422269]
[1770780295639,0.48640717,83.061,83.03,53.89600041]
[1770780295640,0.48640717,83.061,83.033,0.49422269]
[1770780297254,50.6,83.074,83.033,0.49422269]
[1770780297463,0.48640717,83.072,83.041,0.49422269]
[1770780297752,0.48640717,83.069,83.042,12.04209917]
[1770780298454,0.48640717,83.069,83.043,0.49422269]
[1770780299449,0.48640717,83.069,83.044,12.04180916]
[1770780299658,6.27600041,83.06,83.037,12.04280888]
[1770780299855,0.48640717,83.059,83.037,12.04280888]
[1770780301661,0.48640717,83.067,83.04,6.27600041]
[1770780301830,0.48640717,83.067,83.037,12.04280888]
[1770780302257,30.0915564,83.08,83.041,0.49422269]
[1770780302258,0.48640717,83.079,83.041,0.49422269]
[1770780302457,0.48640717,83.079,83.042,0.49422269]
[1770780303032,0.48640717,83.079,83.051,0.49422269]
[1770780303655,0.48640717,83.086,83.06,6.7702231]
[1770780303859,0.48640717,83.099,83.071,0.49422269]
[1770780304033,0.48640717,83.109,83.073,0.49422269]
[1770780304234,0.48640717,83.109,83.072,47.7]
[1770780304235,0.48640717,83.109,83.081,0.49422269]
[1770780304433,0.48640717,83.117,83.09,6.27600041]
[1770780304634,0.48640717,83.117,83.091,0.49422269]
[1770780304879,0.48640717,83.128,83.091,0.49422269]
[1770780305651,0.48640717,83.128,83.093,0.49422269]
[1770780306837,0.48640717,83.119,83.09,47.68]
[1770780307134,6.27600041,83.13,83.09,47.68]
[1770780307135,6.76240758,83.13,83.093,0.49422269]
[1770780307533,0.48640717,83.129,83.094,12.03456326]
[1770780307736,0.48640717,83.129,83.1,6.27600041]
[1770780307948,0.48640717,83.129,83.101,0.49422269]
[1770780308255,0.48640717,83.137,83.101,0.49422269]
[1770780310248,0.48640717,83.135,83.102,12.03340473]
[1770780310454,0.48640717,83.135,83.102,12.52762742]
[1770780310749,0.48640717,83.135,83.103,0.49422269]
[1770780311554,0.2,83.14,83.111,0.49422269]
[1770780311750,0.48640717,83.139,83.111,0.49422269]
[1770780312459,0.48640717,83.139,83.112,42.60607175]
[1770780312753,0.48640717,83.149,83.12,6.27600041]
[1770780312961,0.48640717,83.149,83.121,0.49422269]
[1770780313352,0.48640717,83.139,83.103,0.49422269]
[1770780313545,0.48640717,83.139,83.109,12.03236819]
[1770780313743,0.48640717,83.139,83.1,6.27600041]
[1770780313744,0.48640717,83.139,83.102,12.03339465]
[1770780313953,0.48640717,83.139,83.1,6.27600041]
[1770780313954,0.48640717,83.129,83.092,47.7]
[1770780314358,0.48640717,83.129,83.104,12.03309523]
[1770780314853,0.48640717,83.129,83.105,0.49422269]
[1770780315257,0.48640717,83.137,83.111,0.49422269]
[1770780316263,0.48640717,83.137,83.112,12.03195687]
[1770780317264,0.48640717,83.146,83.113,0.49422269]
[1770780317961,0.48640717,83.139,83.112,12.03195687]
[1770780318748,0.48640717,83.119,83.092,12.03480926]
[1770780319143,0.48640717,83.119,83.087,12.03547252]
[1770780319361,0.48640717,83.119,83.077,30.09231811]
[1770780319362,0.48640717,83.109,83.071,0.49422269]
[1770780319562,50.38,83.128,83.068,12.03832057]
[1770780319563,0.48640717,83.099,83.068,12.03832057]
[1770780319771,0.48640717,83.099,83.07,6.27600041]
[1770780319950,0.48640717,83.099,83.07,6.7702231]
[1770780320146,0.48293344,83.109,83.08,6.27600041]
[1770780320346,0.48293344,83.109,83.071,0.47348517]
[1770780320650,0.48293344,83.109,83.074,0.47348517]
[1770780322249,0.48293344,83.109,83.073,42.13161916]
[1770780322250,0.48293344,83.118,83.081,0.47348517]
[1770780322565,0.48293344,83.118,83.09,6.27600041]
[1770780322873,0.48293344,83.118,83.09,6.74948558]
[1770780323251,0.48293344,83.127,83.092,0.47348517]
[1770780325170,0.48293344,83.127,83.101,12.03354953]
[1770780325366,0.4816998,83.135,83.102,0.48534895]
[1770780326249,0.4816998,83.145,83.111,0.48534895]
[1770780327671,0.4816998,83.129,83.103,0.3]
[1770780327855,0.4816998,83.119,83.093,12.03466162]
[1770780328453,0.4816998,83.119,83.085,12.03578063]
[1770780328857,0.4816998,83.109,83.075,12.03722724]
[1770780329260,0.4816998,83.109,83.07,18.31391778]
[1770780329455,0.4816998,83.109,83.067,0.48534895]
[1770780329649,0.4816998,83.089,83.065,12.0386525]
[1770780330067,0.4816998,83.089,83.067,12.03847496]
[1770780331771,0.4816998,83.089,83.061,12.03934457]
[1770780332272,0.4816998,83.079,83.051,47.74]
[1770780332858,0.4816998,83.088,83.06,12.03948356]
[1770780333061,0.4816998,83.097,83.061,0.48534895]
[1770780333269,0.4816998,83.109,83.071,0.48534895]
[1770780334084,0.4816998,83.108,83.073,0.48534895]
[1770780334879,0.4816998,83.106,83.074,12.03746057]
[1770780336078,0.4816998,83.104,83.074,12.03746057]
[1770780336281,0.4816998,83.099,83.069,12.03805252]
[1770780337180,0.4816998,83.099,83.073,12.03753759]
[1770780338688,0.4816998,83.097,83.066,12.0385069]
[1770780340588,0.4816998,83.089,83.064,0.48534895]
[1770780340789,0.4816998,83.089,83.065,12.03876482]
[1770780341081,50.2,83.113,83.07,19.13766035]
[1770780341082,0.4816998,83.099,83.07,19.13766035]
[1770780341386,0.4816998,83.108,83.08,18.6523114]
[1770780342285,0.4816998,83.108,83.079,0.48534895]
[1770780343464,0.4816998,83.108,83.065,42.13567687]
[1770780343465,0.4816998,83.108,83.081,0.48534895]
[1770780344585,12.514351,83.108,83.08,12.03659123]
[1770780344791,0.4816998,83.107,83.08,12.03659123]
[1770780345992,0.4816998,83.099,83.075,12.03731567]
[1770780346589,0.4816998,83.099,83.07,12.03790284]
[1770780346894,0.4816998,83.099,83.073,12.03746702]
[1770780347272,0.4816998,83.099,83.075,12.03731567]
[1770780347590,0.4816998,83.099,83.07,12.03796861]
[1770780348187,0.4816998,83.097,83.065,12.03876482]
[1770780350296,0.4816998,83.097,83.065,0.49834296]
[1770780352198,0.4816998,83.097,83.066,12.03861989]
[1770780353396,0.4816998,83.097,83.066,0.49834296]
[1770780353820,0.4816998,83.097,83.07,6.26919699]
[1770780354183,0.4816998,83.097,83.066,0.49834296]
[1770780354498,0.45318206,83.109,83.081,0.49834296]
[1770780354876,0.45318206,83.109,83.07,6.26919699]
[1770780355091,0.45318206,83.109,83.071,0.49834296]
[1770780355285,6.26919699,83.09,83.061,12.03934457]
[1770780355500,0.45318206,83.089,83.062,48.37834296]
[1770780357797,0.45318206,83.087,83.062,47.88]
[1770780357997,0.45318206,83.079,83.062,47.88]
[1770780360000,0.45318206,83.079,83.056,12.04005249]
[1770780360201,0.45318206,83.069,83.05,47.96]
[1770780360497,6.26919699,83.07,83.054,12.04033681]
[1770780360705,0.45318206,83.069,83.05,60.00093886]
[1770780360885,0.45318206,83.079,83.054,0.49834296]
[1770780361194,0.45318206,83.079,83.057,12.03991683]
[1770780361395,0.45318206,83.079,83.052,0.49834296]
[1770780361982,0.45318206,83.086,83.052,0.49834296]
[1770780362291,0.45318206,83.086,83.061,0.49834296]
[1770780362490,0.45318206,83.086,83.054,0.49834296]
[1770780362693,36.3535712,83.1,83.054,0.49834296]
[1770780362694,0.45318206,83.079,83.054,0.49834296]
[1770780363300,0.45318206,83.079,83.047,0.49834296]
[1770780364184,0.45318206,83.079,83.051,0.49834296]
[1770780364814,0.45318206,83.078,83.045,0.49834296]
[1770780365301,0.45318206,83.078,83.047,0.49834296]
[1770780365692,0.45318206,83.059,83.043,47.98]
[1770780365896,0.45318206,83.067,83.045,12.04159879]
[1770780366688,0.45318206,83.067,83.045,12.53994175]
[1770780367297,0.45318206,83.067,83.043,47.98]
[1770780367618,0.45318206,83.067,83.03,6.26919699]
[1770780367619,0.45318206,83.059,83.031,12.04358737]
[1770780368109,0.45318206,83.059,83.035,12.04303325]
[1770780369890,0.45318206,83.059,83.03,18.81133798]
[1770780370128,0.45318206,83.059,83.031,0.3]
[1770780371390,0.45318206,83.059,83.031,0.79834296]
[1770780372511,0.45318206,83.059,83.032,12.04354947]
[1770780375220,0.45318206,83.085,83.051,0.49834296]
[1770780375392,6.26919699,83.08,83.051,0.49834296]
[1770780375597,0.45318206,83.085,83.051,0.49834296]
[1770780376012,6.26919699,83.09,83.061,0.49834296]
[1770780376514,6.72237905,83.09,83.061,0.49834296]
[1770780376726,12.03543231,83.088,83.061,0.49834296]
[1770780377220,12.48861437,83.088,83.061,0.49834296]
[1770780377637,0.45318206,83.088,83.063,0.49834296]
[1770780377921,12.03426737,83.097,83.063,0.49834296]
[1770780377922,0.45318206,83.096,83.063,0.49834296]
[1770780379326,0.45318206,83.096,83.065,0.49834296]
[1770780380023,0.45318206,83.094,83.065,0.49834296]
[1770780380819,0.45275627,83.101,83.071,0.4732188]
[1770780381012,12.03288581,83.106,83.071,0.4732188]
[1770780382416,0.45275627,83.105,83.072,12.03775038]
[1770780382618,0.45275627,83.105,83.073,0.4732188]
[1770780383334,6.72195326,83.11,83.081,0.4732188]
[1770780383520,0.45275627,83.109,83.081,0.4732188]
[1770780383721,0.49136605,83.099,83.071,0.45244008]
[1770780384034,42.11236584,83.111,83.06,6.26919699]
[1770780384035,0.49136605,83.089,83.069,48.08]
[1770780384324,0.49136605,83.089,83.065,0.45244008]
[1770780384931,0.49136605,83.089,83.064,12.03876733]
[1770780386132,0.49136605,83.089,83.059,12.03963447]
[1770780386430,20.0,103.5,83.053,12.49283722]
[1770780386431,0.49136605,83.079,83.053,12.49283722]
[1770780386637,0.49136605,83.079,83.053,12.04039714]
[1770780387833,0.49136605,83.079,83.048,12.04122916]
[1770780388032,0.49136605,83.079,83.049,0.45244008]
[1770780389935,0.49136605,83.079,83.051,0.45244008]
[1770780390430,12.03616323,83.083,83.051,0.45244008]
[1770780390628,0.49136605,83.085,83.053,0.45244008]
[1770780392126,0.49136605,83.083,83.053,12.040376]
[1770780392320,0.49136605,83.083,83.054,0.45244008]
[1770780392729,0.49136605,83.083,83.053,12.040376]
[1770780394338,0.49136605,83.083,83.053,12.49281608]
[1770780394642,0.49136605,83.083,83.054,0.45244008]
[1770780395242,12.03630148,83.082,83.054,0.45244008]
[1770780395447,0.49136605,83.081,83.054,0.45244008]
[1770780396341,0.49136605,83.085,83.056,0.45244008]
[1770780396531,0.49136605,83.094,83.061,0.45244008]
[1770780399539,0.49136605,83.092,83.061,0.45244008]
[1770780399744,0.49136605,83.089,83.055,12.49259728]
[1770780399950,0.49136605,83.089,83.056,0.45244008]
[1770780400861,0.49136605,83.139,83.056,0.45244008]
[1770780401146,163.9,83.395,83.056,0.45244008]
[1770780401147,517.6,83.5,83.056,0.45244008]
[1770780401148,0.2,83.22,83.112,0.45244008]
[1770780401325,0.2,83.22,83.093,6.28545675]
[1770780401326,0.2,83.22,83.191,0.45244008]
[1770780401527,0.2,83.22,83.201,0.45244008]
[1770780401728,0.2,83.22,83.21,6.26959417]
[1770780401930,0.2,83.25,83.223,0.2]
[1770780402167,0.16607645,83.25,83.23,6.26959417]
[1770780402341,12.00638739,83.289,83.248,0.2574425]
[1770780402663,6.46959417,83.29,83.249,48.14]
[1770780402948,0.5,83.289,83.25,6.26959417]
[1770780403247,0.5,83.289,83.249,48.12]
[1770780403648,0.5,83.279,83.249,48.12]
[1770780403855,0.5,83.269,83.245,48.12]
[1770780404371,0.5,83.289,83.25,12.01201201]
[1770780404675,0.5,83.289,83.25,18.28160618]
[1770780404875,44.3325141,83.3,83.27,18.56094904]
[1770780405176,0.2,83.32,83.263,5.13032502]
[1770780405478,1e-08,83.32,83.31,18.56094904]
[1770780405662,0.5,83.366,83.311,48.1]
[1770780405864,18.76094904,83.37,83.34,18.56094904]
[1770780405865,0.2,83.37,83.34,18.56094904]
[1770780406065,47.6662832,83.387,83.351,0.45244008]
[1770780406268,47.6662832,83.387,83.361,0.45244008]
[1770780406562,47.9288047,83.458,83.341,48.08]
[1770780406563,18.56094904,83.44,83.381,0.45244008]
[1770780406762,18.56094904,83.43,83.383,0.45244008]
[1770780406960,41.92771661,83.477,83.383,0.45244008]
[1770780407153,41.92771661,83.477,83.179,51.86344235]
[1770780407154,18.56094904,83.45,83.35,0.45244008]
[1770780407353,18.56094904,83.39,83.351,20.13244008]
[1770780407968,18.56094904,83.39,83.352,11.9973126]
[1770780408166,18.56094904,83.4,83.361,0.45244008]
[1770780408367,5.13032502,83.419,83.344,11.99837201]
[1770780408368,18.56094904,83.38,83.344,11.99837201]
[1770780408560,0.49136605,83.369,83.322,0.45244008]
[1770780408879,0.49136605,83.369,83.332,48.02]
[1770780409062,0.49136605,83.359,83.329,48.02]
[1770780409261,0.49136605,83.359,83.338,11.99926369]
[1770780409458,18.56094904,83.39,83.352,12.44975268]
[1770780409657,0.49136605,83.369,83.352,0.45244008]
[1770780409858,0.49136605,83.369,83.336,48.02]
[1770780410977,0.52655518,83.349,83.322,48.02]
[1770780411184,0.52655518,83.349,83.31,18.56094904]
[1770780411381,0.52655518,83.341,83.311,48.02]
[1770780411565,18.56094904,83.35,83.312,12.00294129]
[1770780411762,0.52655518,83.355,83.32,18.56094904]
[1770780411979,0.52655518,83.369,83.33,18.56094904]
[1770780412173,0.52655518,83.369,83.331,0.26139236]
[1770780412473,0.52655518,83.369,83.32,18.56094904]
[1770780412682,0.52655518,83.359,83.321,48.04]
[1770780413876,0.52655518,83.358,83.321,48.04]
[1770780414074,0.52655518,83.339,83.3,18.56094904]
[1770780414278,0.52655518,83.349,83.31,18.56094904]
[1770780414665,0.52655518,83.339,83.302,0.32730853]
[1770780414879,0.52655518,83.339,83.301,48.02]
[1770780415200,18.56094904,83.31,83.283,5.13032502]
[1770780415381,0.52655518,83.31,83.28,66.60094904]
[1770780415589,0.52655518,83.31,83.28,48.04]
[1770780415779,0.52655518,83.309,83.272,48.04]
[1770780416084,12.0036491,83.308,83.272,48.04]
[1770780416279,0.52655518,83.299,83.25,0.3917008]
[1770780416466,0.52655518,83.289,83.251,48.04]
[1770780416663,0.52655518,83.289,83.253,12.01146542]
[1770780417100,0.52655518,83.289,83.254,0.42331539]
[1770780417774,0.52655518,83.289,83.251,48.04]
[1770780417967,31.0952587,83.28,83.251,48.04]
[1770780418161,0.52655518,83.279,83.251,48.04]
[1770780418365,0.52655518,83.279,83.243,0.42331539]
[1770780419461,0.52655518,83.279,83.243,48.48331539]
[1770780420470,0.52655518,83.279,83.244,12.0128778]
[1770780420672,0.52655518,83.279,83.245,0.51610196]
[1770780420865,0.52655518,83.298,83.251,0.51610196]
[1770780421181,18.57637442,83.28,83.252,48.08]
[1770780421369,19.1029296,83.28,83.245,0.54631218]